bitfinex/quotes_SOLUSD_20260224
["timestamp","ask_amount","ask_price","bid_price","bid_amount"]
[1771971353982,0.47331942,79.295,79.269,0.48453771]
[1771971354163,0.47331942,79.295,79.271,0.48453771]
[1771971354678,31.5207322,79.313,79.271,0.48453771]
[1771971354882,0.47331942,79.309,79.271,0.48453771]
[1771971356266,0.49412482,79.307,79.273,0.45816629]
[1771971359162,4.88729351,79.31,79.27,36.42507577]
[1771971359163,0.49412482,79.305,79.275,0.45816629]
[1771971359363,156.6337341,80.202,79.274,12.61447637]
[1771971359364,0.49412482,79.322,79.291,0.45816629]
[1771971360276,0.49412482,79.309,79.281,0.45816629]
[1771971360788,0.49412482,79.299,79.275,0.45816629]
[1771971361277,0.49412482,79.289,79.26,0.2]
[1771971361479,0.49412482,79.289,79.24,0.2]
[1771971361480,0.49412482,79.269,79.24,0.2]
[1771971361687,0.49412482,79.298,79.242,0.45816629]
[1771971361861,0.49412482,79.298,79.241,12.61972968]
[1771971361862,0.49412482,79.289,79.261,0.45816629]
[1771971362479,0.49412482,79.279,79.248,0.45816629]
[1771971363478,0.49412482,79.277,79.249,12.61845575]
[1771971364370,0.49412482,79.277,79.249,13.07662204]
[1771971364565,0.49412482,79.277,79.25,0.45816629]
[1771971365501,0.49412482,79.275,79.245,0.45816629]
[1771971367573,0.49412482,79.273,79.247,0.45816629]
[1771971370179,0.49412482,79.297,79.261,0.45816629]
[1771971370673,0.49412482,79.297,79.271,0.45816629]
[1771971371684,0.49412482,79.289,79.256,0.45816629]
[1771971372893,0.49412482,79.279,79.248,12.61861498]
[1771971373111,0.49412482,79.279,79.249,0.45816629]
[1771971373389,0.49412482,79.279,79.251,0.45816629]
[1771971374577,0.49412482,79.269,79.245,0.45816629]
[1771971375699,0.49412482,79.269,79.246,13.07709973]
[1771971376474,0.49412482,79.267,79.241,0.45816629]
[1771971377784,4.88729351,79.27,79.24,12.81980575]
[1771971377785,12.61389263,79.278,79.243,0.45816629]
[1771971377980,0.49412482,79.277,79.243,0.45816629]
[1771971379985,0.49412482,79.269,79.245,0.45816629]
[1771971382298,12.61527204,79.269,79.246,0.45816629]
[1771971383099,13.10939686,79.269,79.246,0.45816629]
[1771971383976,12.61527204,79.269,79.246,0.45816629]
[1771971384181,0.49412482,79.268,79.246,0.45816629]
[1771971384497,12.61559034,79.267,79.246,0.45816629]
[1771971384679,0.49797804,79.266,79.246,0.45816629]
[1771971385396,0.49797804,79.266,79.24,0.65461128]
[1771971385581,0.4871571,79.259,79.24,0.65461128]
[1771971386575,12.61702288,79.258,79.24,0.65461128]
[1771971387786,12.61702288,79.258,79.241,0.45461128]
[1771971389398,5.38486668,79.26,79.241,0.45461128]
[1771971389597,0.4871571,79.259,79.241,0.45461128]
[1771971392101,0.4871571,79.257,79.24,0.2]
[1771971392284,0.4871571,79.249,79.23,0.2]
[1771971393201,4.89770958,79.25,79.231,0.45461128]
[1771971393399,12.61702288,79.258,79.231,0.45461128]
[1771971393794,12.61702288,79.258,79.23,5.09770958]
[1771971393795,0.4871571,79.279,79.241,0.45461128]
[1771971394185,0.4871571,79.279,79.243,0.45461128]
[1771971394486,3.69383402,79.306,79.243,0.45461128]
[1771971394487,4.89770958,79.26,79.243,0.45461128]
[1771971395623,0.4871571,79.26,79.243,0.45461128]
[1771971396102,12.6168637,79.259,79.231,0.45461128]
[1771971396307,0.4871571,79.258,79.231,0.45461128]
[1771971398709,12.61718207,79.257,79.231,0.45461128]
[1771971398910,0.4871571,79.256,79.231,0.45461128]
[1771971399111,0.4871571,79.239,79.209,0.45461128]
[1771971399408,0.4871571,79.229,79.203,0.45461128]
[1771971400912,0.4871571,79.229,79.205,0.45461128]
[1771971402709,0.4871571,79.227,79.205,0.45461128]
[1771971404110,0.4871571,79.225,79.199,0.45461128]
[1771971405512,12.62243764,79.224,79.199,0.45461128]
[1771971405710,0.4871571,79.223,79.199,13.08087594]
[1771971405909,0.4871571,79.223,79.2,0.45461128]
[1771971407223,0.4871571,79.223,79.201,0.45461128]
[1771971410225,13.1099134,79.222,79.201,0.45461128]
[1771971411217,13.1099134,79.222,79.193,31.5681544]
[1771971411218,0.4871571,79.222,79.203,0.45461128]
[1771971411801,0.4871571,79.222,79.202,12.62594378]
[1771971412813,0.30508274,79.204,79.199,12.62642205]
[1771971413125,0.10508274,79.204,79.2,0.45461128]
[1771971415126,0.4871571,79.219,79.2,0.45461128]
[1771971415426,0.4871571,79.219,79.2,5.35232086]
[1771971415613,0.4871571,79.219,79.201,0.48509712]
[1771971416415,0.4871571,79.219,79.201,13.11120032]
[1771971417826,12.62339367,79.218,79.201,0.48509712]
[1771971418210,13.07758474,79.218,79.201,0.48509712]
[1771971418712,0.45419107,79.217,79.201,0.48509712]
[1771971418914,0.45419107,79.217,79.197,12.62673924]
[1771971419116,0.45419107,79.209,79.19,0.2]
[1771971419516,0.45419107,79.209,79.151,12.63407916]
[1771971419720,44.18187785,79.218,79.151,12.63407916]
[1771971419721,4.89770958,79.19,79.151,12.63407916]
[1771971419924,0.45419107,79.187,79.16,4.89770958]
[1771971420125,0.45419107,79.187,79.16,17.53031229]
[1771971420320,0.45419107,79.189,79.15,5.09770958]
[1771971420635,0.45419107,79.189,79.16,4.89770958]
[1771971421131,0.45419107,79.189,79.161,0.48509712]
[1771971421329,0.45419107,79.203,79.171,0.48509712]
[1771971421831,0.45419107,79.201,79.171,0.48509712]
[1771971424936,36.4594313,79.21,79.17,4.89770958]
[1771971424937,0.45419107,79.199,79.173,0.48509712]
[1771971426821,0.45419107,79.197,79.167,0.48509712]
[1771971428538,0.45419107,79.195,79.171,0.48509712]
[1771971429953,0.45419107,79.193,79.171,0.48509712]
[1771971430533,0.45419107,79.189,79.164,12.63191849]
[1771971431541,0.45419107,79.189,79.164,13.11701561]
[1771971432442,0.45419107,79.188,79.164,13.11701561]
[1771971432942,0.45419107,79.179,79.151,12.63407916]
[1771971434841,12.62977089,79.178,79.153,12.63375993]
[1771971435037,0.45419107,79.177,79.153,12.63375993]
[1771971435234,0.45419107,79.177,79.154,0.48277804]
[1771971436736,0.45419107,79.177,79.155,12.63344071]
[1771971437754,0.45419107,79.177,79.156,0.4827309]
[1771971438950,0.45419107,79.177,79.156,0.48268485]
[1771971439155,12.6296379,79.179,79.156,0.48268485]
[1771971439967,0.45419107,79.219,79.171,0.48266221]
[1771971440263,0.45419107,79.219,79.19,4.89770958]
[1771971441260,0.45419107,79.217,79.188,12.62815116]
[1771971441468,0.45419107,79.217,79.19,4.89770958]
[1771971443453,0.45419107,79.215,79.191,12.62769759]
[1771971443661,0.45419107,79.215,79.192,0.48259586]
[1771971444445,0.45419107,79.215,79.191,13.11027184]
[1771971445150,0.4767694,79.213,79.191,13.11020848]
[1771971445358,0.4767694,79.213,79.192,0.48251089]
[1771971445540,0.4767694,79.223,79.201,0.48251089]
[1771971446342,0.4767694,79.232,79.21,4.89770958]
[1771971446557,0.4767694,79.232,79.211,0.48249026]
[1771971446753,0.4767694,79.232,79.201,0.48249026]
[1771971447150,12.62132246,79.231,79.202,12.62594378]
[1771971447459,0.4767694,79.23,79.203,0.48246986]
[1771971450156,0.4767694,79.228,79.193,12.62728219]
[1771971450354,0.4767694,79.228,79.192,0.48241006]
[1771971451442,0.4767694,79.226,79.192,0.48241006]
[1771971452153,0.4767694,79.219,79.192,0.48241006]
[1771971456864,0.4767694,79.217,79.192,0.48241006]
[1771971457656,0.4767694,79.217,79.186,13.11066237]
[1771971457857,0.4767694,79.217,79.187,0.48226037]
[1771971459752,12.62263368,79.223,79.191,0.48224261]
[1771971459970,13.09839652,79.23,79.201,0.48222506]
[1771971460391,0.4767694,79.229,79.201,0.48222506]
[1771971460864,0.4767694,79.229,79.201,0.45844031]
[1771971462278,3.69383402,79.257,79.2,4.90279475]
[1771971462279,0.4767694,79.248,79.22,4.90279475]
[1771971462667,0.4767694,79.248,79.221,0.4584058]
[1771971463878,0.4767694,79.246,79.221,0.4584058]
[1771971464772,0.4767694,79.246,79.218,12.62334798]
[1771971465770,0.4767694,79.244,79.218,0.45835552]
[1771971468381,0.4767694,79.242,79.21,5.3611017]
[1771971468688,0.4767694,79.239,79.206,13.08350727]
[1771971469878,0.4767694,79.237,79.207,0.45829113]
[1771971473581,0.4767694,79.235,79.207,12.62506326]
[1771971473781,0.4767694,79.235,79.208,0.45822964]
[1771971477780,0.49260709,79.233,79.208,0.45822964]
[1771971478705,0.49260709,79.233,79.207,12.5832929]
[1771971479885,0.50065002,79.229,79.169,15.24052686]
[1771971480208,0.50065002,79.229,79.19,4.90279475]
[1771971487201,0.50065002,79.227,79.19,4.90279475]
[1771971487500,0.50065002,79.219,79.18,4.90279475]
[1771971490395,0.50065002,79.217,79.181,12.62929238]
[1771971490593,0.50065002,79.217,79.19,4.90279475]
[1771971491597,0.50065002,79.228,79.2,4.90279475]
[1771971492708,31.5514636,79.236,79.2,4.90279475]
[1771971493012,0.50065002,79.235,79.2,17.52890135]
[1771971497212,0.50065002,79.229,79.19,4.90279475]
[1771971498515,4.90279475,79.22,79.191,12.62769759]
[1771971498815,0.50065002,79.219,79.191,12.62769759]
[1771971502220,12.62339367,79.218,79.191,12.62769759]
[1771971502536,13.12404369,79.218,79.191,12.62769759]
[1771971502710,0.50065002,79.217,79.191,12.62769759]
[1771971503635,0.50065002,79.217,79.155,3.69383402]
[1771971503814,0.50065002,79.217,79.18,4.90279475]
[1771971504007,0.50065002,79.199,79.153,12.63375993]
[1771971504213,44.20419812,79.178,79.12,5.10279475]
[1771971504419,0.50065002,79.177,79.14,4.90279475]
[1771971504621,0.50065002,79.169,79.13,4.90279475]
[1771971504828,0.50065002,79.169,79.12,0.2]
[1771971504829,0.50065002,79.159,79.12,0.2]
[1771971505020,0.50065002,79.159,79.12,17.74168062]
[1771971506424,0.50065002,79.157,79.12,17.74168062]
[1771971507509,12.63328111,79.156,79.12,17.74168062]
[1771971507709,0.50065002,79.155,79.12,17.74168062]
[1771971508732,0.50065002,79.149,79.12,0.2]
[1771971508937,0.50065002,79.139,79.12,0.2]
[1771971509640,0.50065002,79.137,79.12,0.2]
[1771971511931,0.50065002,79.135,79.12,0.2]
[1771971512135,12.63647391,79.136,79.08,0.2]
[1771971512136,0.49658544,79.119,79.08,0.2]
[1771971512437,0.49658544,79.102,79.08,0.2]
[1771971512660,4.90279475,79.11,79.07,5.10279475]
[1771971512661,0.49658544,79.099,79.07,0.2]
[1771971512817,0.49658544,79.087,79.07,0.2]
[1771971513019,0.49658544,79.099,79.07,0.2]
[1771971513435,0.49658544,79.079,79.049,0.39949104]
[1771971513715,0.49658544,79.079,79.05,4.91872231]
[1771971513916,0.49658544,79.079,79.05,5.31821335]
[1771971514332,0.49658544,79.077,79.052,0.39948195]
[1771971514719,0.49658544,79.077,79.051,12.5495433]
[1771971514934,0.50039099,79.069,79.041,12.65166179]
[1771971515240,0.50039099,79.069,79.04,5.11872231]
[1771971515439,0.50039099,79.069,79.04,0.2]
[1771971516222,0.50039099,79.072,79.041,12.65166179]
[1771971516423,0.50039099,79.072,79.05,4.91872231]
[1771971516942,0.50039099,79.072,79.041,12.65166179]
[1771971518735,0.50039099,79.07,79.041,12.65166179]
[1771971520236,0.50039099,79.069,79.04,0.2]
[1771971520739,0.50039099,79.067,79.041,12.65166179]
[1771971520943,0.50039099,79.075,79.05,4.91872231]
[1771971522051,0.50039099,79.075,79.041,44.28081627]
[1771971522052,0.50039099,79.075,79.041,12.65166179]
[1771971524350,0.50039099,79.073,79.041,12.65166179]
[1771971525144,0.50039099,79.077,79.04,0.2]
[1771971525442,0.50039099,79.069,79.041,12.65166179]
[1771971525746,0.50039099,79.078,79.041,44.28081627]
[1771971525946,0.50039099,79.078,79.041,12.65166179]
[1771971526322,44.26065732,79.077,79.04,5.11872231]
[1771971526648,4.91872231,79.06,79.04,0.2]
[1771971526822,0.50039099,79.059,79.04,0.2]
[1771971527534,0.50039099,79.057,79.04,0.2]
[1771971527942,0.50039099,79.049,79.029,0.2445758]
[1771971529144,12.64894128,79.058,79.03,0.4783664]
[1771971529328,12.64894128,79.058,79.031,0.4783664]
[1771971529725,44.26549935,79.069,79.033,0.4783664]
[1771971531132,12.64718157,79.069,79.041,0.4783664]
[1771971531336,0.49658544,79.068,79.041,0.4783664]
[1771971531542,0.49658544,79.068,79.032,0.4783664]
[1771971531850,0.49658544,79.066,79.034,0.4783664]
[1771971532848,13.14440685,79.065,79.034,0.4783664]
[1771971533341,0.49658544,79.064,79.034,0.4783664]
[1771971535240,13.12046042,79.063,79.036,0.47561775]
[1771971535643,31.61795393,79.069,79.041,0.47561775]
[1771971535644,0.47231907,79.068,79.041,0.47561775]
[1771971537040,0.47231907,79.077,79.041,0.47561775]
[1771971537240,0.47231907,79.087,79.061,0.47561775]
[1771971537637,12.64414323,79.088,79.061,0.47561775]
[1771971538240,13.1164623,79.088,79.061,0.47561775]
[1771971538552,0.47231907,79.085,79.061,0.47561775]
[1771971539257,0.47231907,79.085,79.062,12.64830133]
[1771971540553,0.47231907,79.085,79.062,0.47561775]
[1771971542141,12.64381549,79.091,79.062,0.47561775]
[1771971542541,3.69383402,79.116,79.04,4.91872231]
[1771971542542,12.64206014,79.102,79.072,12.64670174]
[1771971542846,0.47231907,79.101,79.073,0.47561775]
[1771971543045,0.47231907,79.099,79.073,0.47561775]
[1771971544063,0.47231907,79.089,79.05,4.91872231]
[1771971544282,0.47231907,79.079,79.051,0.47561775]
[1771971544448,0.47231907,79.089,79.061,0.47561775]
[1771971545080,0.47231907,79.087,79.061,0.47561775]
[1771971546459,0.47231907,79.087,79.062,13.12391908]
[1771971548073,12.64446298,79.086,79.062,13.12391908]
[1771971548368,0.47231907,79.085,79.062,13.12391908]
[1771971549351,0.47231907,79.092,79.063,0.47561775]
[1771971550454,0.47231907,79.089,79.05,4.91872231]
[1771971551055,0.47231907,79.089,79.051,0.47561775]
[1771971553953,0.47231907,79.087,79.053,0.47561775]
[1771971557078,0.47231907,79.093,79.061,0.47561775]
[1771971558560,0.47231907,79.091,79.062,12.64830133]
[1771971558951,0.47231907,79.091,79.063,0.47561775]
[1771971561072,12.64238485,79.099,79.081,0.47561775]
[1771971561571,0.47231907,79.098,79.071,0.47561775]
[1771971569170,31.60288815,79.107,79.073,0.47237872]
[1771971569368,0.48136313,79.106,79.073,0.47237872]
[1771971569664,31.60288815,79.107,79.073,0.47237872]
[1771971569861,29.10203303,79.107,79.073,0.47237872]
[1771971572585,12.64142595,79.105,79.073,0.47237872]
[1771971574698,4.91872231,79.11,79.073,0.47237872]
[1771971574867,12.64078676,79.109,79.076,0.47237872]
[1771971575669,12.64078676,79.109,79.081,0.47237872]
[1771971577989,0.48136313,79.108,79.081,0.47237872]
[1771971586398,0.48136313,79.106,79.081,0.47237872]
[1771971587170,12.64110634,79.107,78.97,27.66403123]
[1771971587171,0.48136313,79.099,79.052,0.47237872]
[1771971587406,0.48136313,79.089,79.054,0.47237872]
[1771971587695,0.48136313,79.089,79.061,0.47237872]
[1771971590397,0.48136313,79.087,79.05,5.38927363]
[1771971590875,0.48136313,79.087,79.051,0.47237872]
[1771971591076,0.48136313,79.079,79.051,0.47237872]
[1771971591494,12.64570139,79.079,79.051,0.47237872]
[1771971591679,0.48136313,79.078,79.051,0.47237872]
[1771971594191,0.48136313,79.078,79.05,4.91689491]
[1771971595199,12.64286436,79.096,79.061,0.48465628]
[1771971597205,0.4502104,79.093,79.061,0.48465628]
[1771971598013,0.4502104,79.089,79.05,4.91689491]
[1771971598183,0.4502104,79.089,79.051,0.48465628]
[1771971603608,0.4502104,79.087,79.051,0.48465628]
[1771971605709,31.60796014,79.094,79.071,0.48465628]
[1771971605710,0.4502104,79.094,79.071,0.48465628]
[1771971606215,0.4502104,79.094,79.066,0.48465628]
[1771971606794,0.4502104,79.094,79.066,13.13223036]
[1771971607313,0.4502104,79.099,79.071,0.48465628]
[1771971607495,0.4502104,79.104,79.081,0.48465628]
[1771971614221,0.4502104,79.104,79.085,0.48465628]
[1771971621625,0.4502104,79.139,79.091,0.48465628]
[1771971621806,0.4502104,79.139,79.111,0.48465628]
[1771971622206,0.4502104,79.139,79.12,4.91689491]
[1771971624021,0.4502104,79.137,79.113,0.48465628]
[1771971624442,0.4502104,79.147,79.13,4.91689491]
[1771971624724,0.4502104,79.147,79.131,0.48465628]
[1771971624933,0.4502104,79.147,79.13,4.91689491]
[1771971625726,0.4502104,79.147,79.126,0.48465628]
[1771971627006,0.57623,79.15,79.131,0.47946033]
[1771971628215,0.57623,79.15,79.125,0.47946033]
[1771971628724,0.57623,79.15,79.12,4.91689491]
[1771971628929,0.47623,79.149,79.11,4.91689491]
[1771971629340,0.47623,79.147,79.11,4.91689491]
[1771971629838,0.47623,79.139,79.107,0.47946033]
[1771971630130,4.91689491,79.13,79.1,5.39635524]
[1771971630342,0.47623,79.129,79.1,5.39635524]
[1771971631614,0.47623,79.127,79.1,5.39635524]
[1771971631912,0.47623,79.127,79.1,0.47946033]
[1771971633107,0.47623,79.125,79.1,0.47946033]
[1771971633510,0.34952163,79.125,79.1,0.47946033]
[1771971635345,0.34952163,79.125,79.1,5.39390011]
[1771971635545,0.34952163,79.125,79.101,0.47946033]
[1771971637026,0.47623,79.123,79.101,0.47946033]
[1771971644243,0.47623,79.119,79.081,0.47946033]
[1771971644445,4.91443978,79.11,79.081,0.47946033]
[1771971644646,0.47623,79.109,79.081,0.47946033]
[1771971645633,0.47623,79.109,79.082,0.47946033]
[1771971646635,0.47623,79.107,79.09,4.91443978]
[1771971649539,13.11749614,79.106,79.09,4.91443978]
[1771971651042,0.47623,79.106,79.09,5.39390011]
[1771971651646,12.64142595,79.105,79.09,0.47946033]
[1771971651853,13.11765595,79.105,79.09,5.39390011]
[1771971652737,13.11765595,79.105,79.091,0.47946033]
[1771971654750,0.47623,79.104,79.091,0.47946033]
[1771971666651,0.47623,79.104,79.087,0.46155684]
[1771971667146,0.47623,79.104,79.081,12.64526245]
[1771971667349,0.46949735,79.102,79.081,12.64526245]
[1771971667739,0.46949735,79.102,79.081,13.10681929]
[1771971667940,0.46949735,79.102,79.082,0.46155684]
[1771971671266,0.46949735,79.102,79.083,12.64494265]
[1771971672360,0.46949735,79.102,79.084,0.46155684]
[1771971672740,0.46949735,79.117,79.084,0.46155684]
[1771971674861,44.23772087,79.118,79.08,4.91443978]
[1771971674862,0.46949735,79.149,79.101,0.46155684]
[1771971675055,0.46949735,79.139,79.101,0.46155684]
[1771971675449,0.46949735,79.129,79.1,4.91443978]
[1771971675645,0.46949735,79.119,79.085,44.25618005]
[1771971677764,0.46949735,79.117,79.088,0.46155684]
[1771971678969,0.46949735,79.117,79.082,0.46155684]
[1771971679264,0.46949735,79.109,79.081,12.64510586]
[1771971679973,0.46949735,79.107,79.081,0.46155684]
[1771971685174,0.4735125,79.105,79.083,0.48403789]
[1771971688476,31.59837205,79.118,79.07,4.91443978]
[1771971688477,0.4735125,79.103,79.07,4.91443978]
[1771971688675,0.4735125,79.099,79.067,0.48403789]
[1771971689557,0.4735125,79.097,79.07,0.48403789]
[1771971690575,0.4735125,79.097,79.07,5.39847767]
[1771971691365,0.4735125,79.095,79.071,13.13089957]
[1771971694463,0.4735125,79.093,79.071,13.13089957]
[1771971694864,0.4735125,79.093,79.071,12.64686168]
[1771971695970,0.4735125,79.093,79.06,36.53585678]
[1771971695971,0.4735125,79.091,79.068,13.13137941]
[1771971696565,0.4735125,79.089,79.06,12.64860329]
[1771971697473,0.4735125,79.089,79.061,0.48403789]
[1771971697872,0.4735125,79.089,79.06,17.56876119]
[1771971697873,0.4735125,79.093,79.071,0.48403789]
[1771971698386,12.64350376,79.092,79.072,0.48403789]
[1771971698566,13.11701626,79.092,79.072,0.48403789]
[1771971700984,13.11701626,79.092,79.06,36.54171115]
[1771971700985,12.64350376,79.092,79.074,0.48403789]
[1771971701686,13.11701626,79.092,79.074,0.48403789]
[1771971706000,63.19676471,79.118,79.076,0.48403789]
[1771971706001,0.4735125,79.102,79.076,0.48403789]
[1771971707393,0.4735125,79.112,79.081,0.48403789]
[1771971708279,0.4735125,79.112,79.083,0.48403789]
[1771971708487,0.4735125,79.11,79.083,0.48403789]
[1771971709198,0.4735125,79.11,79.091,0.48403789]
[1771971709502,0.4735125,79.114,79.091,0.48403789]
[1771971710402,0.4735125,79.156,79.104,0.48403789]
[1771971710581,0.4735125,79.156,79.131,0.48403789]
[1771971710779,0.4735125,79.156,79.131,0.39444153]
[1771971711192,0.4735125,79.156,79.14,4.9201579]
[1771971711482,0.4735125,79.156,79.14,4.82271576]
[1771971712200,0.4735125,79.155,79.14,4.82271576]
[1771971712702,31.57749466,79.171,79.14,4.82271576]
[1771971712703,0.4735125,79.153,79.14,4.82271576]
[1771971713295,0.4735125,79.153,79.14,4.72527362]
[1771971714406,0.4735125,79.151,79.11,4.9201579]
[1771971714582,0.4735125,79.151,79.12,4.9201579]
[1771971715687,12.6336907,79.154,79.131,0.49479706]
[1771971715892,13.13311464,79.154,79.131,0.49479706]
[1771971716292,0.49942394,79.153,79.131,0.49479706]
[1771971717587,13.13334348,79.152,79.131,0.49479706]
[1771971717787,0.49942394,79.151,79.131,0.49479706]
[1771971718388,0.49942394,79.151,79.124,0.49479706]
[1771971718783,0.49942394,79.151,79.13,4.9201579]
[1771971719708,0.49942394,79.149,79.13,4.9201579]
[1771971720607,0.49942394,79.149,79.114,0.49479706]
[1771971721509,0.49942394,79.149,79.11,4.9201579]
[1771971722098,0.49942394,79.147,79.11,5.41495496]
[1771971723111,0.49942394,79.147,79.11,4.9201579]
[1771971723292,0.49942394,79.139,79.1,4.9201579]
[1771971723492,44.22095314,79.148,79.09,4.9201579]
[1771971723493,0.49942394,79.129,79.09,4.9201579]
[1771971724522,0.49942394,79.127,79.09,5.41495496]
[1771971724692,0.49942394,79.127,79.091,0.49479706]
[1771971726692,0.49942394,79.125,79.091,0.49479706]
[1771971732417,0.49942394,79.123,79.091,0.49479706]
[1771971738418,0.49942394,79.121,79.091,0.49479706]
[1771971742724,12.63902932,79.12,79.101,0.49479706]
[1771971743320,0.49942394,79.119,79.101,0.49479706]
[1771971744229,0.2,79.111,79.101,0.49479706]
[1771971745137,0.2,79.111,79.101,0.29479706]
[1771971746531,0.48930847,79.109,79.08,4.9201579]
[1771971746728,0.48930847,79.109,79.075,12.64622194]
[1771971747114,0.48930847,79.109,79.076,0.38158658]
[1771971748125,0.48930847,79.107,79.078,0.38175559]
[1771971748925,0.48930847,79.107,79.081,0.38192267]
[1771971750040,0.2,79.111,79.091,0.47226878]
[1771971751622,12.64062697,79.11,79.091,0.47226878]
[1771971752930,13.12993544,79.11,79.091,0.47226878]
[1771971753327,44.24331293,79.108,79.08,4.9201579]
[1771971753532,0.48930847,79.107,79.079,0.47226878]
[1771971754543,0.48930847,79.107,79.081,0.47226878]
[1771971755419,0.48930847,79.11,79.083,0.47226878]
[1771971755620,13.12849753,79.119,79.091,0.47226878]
[1771971759447,0.48930847,79.118,79.092,0.47226878]
[1771971764630,12.63950857,79.117,79.092,0.47226878]
[1771971764844,0.48930847,79.116,79.092,0.47226878]
[1771971765345,0.48930847,79.116,79.094,0.47226878]
[1771971772052,0.48930847,79.132,79.111,0.47226878]
[1771971772253,50.61147852,79.19,79.095,12.64302421]
[1771971772254,0.48930847,79.155,79.121,0.47226878]
[1771971772443,0.48930847,79.155,79.102,3.69383402]
[1771971772444,0.48930847,79.155,79.131,0.47226878]
[1771971773956,12.63345817,79.155,79.132,12.63711267]
[1771971774160,0.48930847,79.154,79.132,12.63711267]
[1771971774655,0.48930847,79.161,79.141,0.47226878]
[1771971774854,0.48930847,79.161,79.14,7.71e-06]
[1771971775149,0.48930847,79.161,79.132,44.22989435]
[1771971775730,0.1,79.17,79.132,44.22989435]
[1771971776147,0.1,79.17,79.16,4.91507062]
[1771971776352,0.1,79.17,79.15,4.91507062]
[1771971776660,0.58620382,79.17,79.14,4.91507062]
[1771971776856,0.58620382,79.17,79.141,0.42165285]
[1771971777437,0.58620382,79.17,79.15,4.91507062]
[1771971777942,0.1,79.17,79.152,0.42250529]
[1771971779240,0.58620382,79.17,79.152,0.42250529]
[1771971779459,0.48620382,79.169,79.146,0.42418091]
[1771971779760,0.48620382,79.169,79.146,13.05901012]
[1771971780457,0.48620382,79.169,79.15,4.91507062]
[1771971780866,0.48620382,79.167,79.131,31.5928014]
[1771971781071,0.48620382,79.167,79.13,4.91507062]
[1771971781963,0.52530696,79.165,79.13,4.91507062]
[1771971783062,43.30027686,79.166,79.131,0.4966732]
[1771971783740,43.30027686,79.166,79.131,13.13394557]
[1771971783937,43.30027686,79.166,79.132,0.4966732]
[1771971785360,0.48620382,79.165,79.132,0.4966732]
[1771971788057,0.48620382,79.163,79.132,0.4966732]
[1771971788651,0.48620382,79.163,79.13,4.91507062]
[1771971789163,0.48620382,79.163,79.131,0.4966732]
[1771971790448,0.48620382,79.149,79.111,0.4966732]
[1771971792255,0.48620382,79.149,79.11,4.91507062]
[1771971793966,0.48620382,79.147,79.11,4.91507062]
[1771971794473,4.91507062,79.14,79.11,4.91507062]
[1771971794673,0.48620382,79.139,79.11,4.91507062]
[1771971794856,0.48620382,79.139,79.092,3.69383402]
[1771971794857,0.48620382,79.129,79.098,12.64254469]
[1771971795058,0.48620382,79.129,79.093,12.64318801]
[1771971795263,0.48620382,79.129,79.093,13.13986121]
[1771971795469,0.48620382,79.129,79.09,4.91507062]
[1771971795876,0.48620382,79.119,79.084,12.64478276]
[1771971796073,0.48620382,79.109,79.069,12.64718157]
[1771971796276,0.48620382,79.099,79.07,4.91507062]
[1771971796460,0.48620382,79.099,79.065,12.64773921]
[1771971796771,0.48620382,79.099,79.021,50.61891875]
[1771971796772,0.48620382,79.099,79.06,3.69383402]
[1771971796979,4.91507062,79.09,79.06,4.91507062]
[1771971797270,4.91507062,79.09,79.061,0.54524572]
[1771971797481,4.91507062,79.09,79.052,0.54524572]
[1771971798571,12.64238485,79.099,79.071,0.54524572]
[1771971801554,44.24834699,79.099,79.071,0.54524572]
[1771971801758,44.24834699,79.099,79.066,12.64759685]
[1771971802077,4.91507062,79.09,79.065,0.54524572]
[1771971802660,44.24834699,79.099,79.065,0.54524572]
[1771971805587,12.64238485,79.099,79.071,0.54524572]
[1771971806160,12.64238485,79.099,79.059,0.54524572]
[1771971806161,4.91507062,79.09,79.059,0.54524572]
[1771971806579,4.91507062,79.09,79.061,0.54524572]
[1771971807082,4.91507062,79.09,79.054,0.54524572]
[1771971807272,4.91507062,79.08,79.055,0.54524572]
[1771971807579,4.91507062,79.07,79.05,0.2]
[1771971809583,12.64718157,79.069,79.05,0.2]
[1771971811265,44.2651355,79.069,79.046,0.54524572]
[1771971811680,12.64718157,79.069,79.046,0.54524572]
[1771971811974,0.2,79.06,79.046,0.54524572]
[1771971813668,0.2,79.05,79.046,0.54524572]
[1771971813870,0.2,79.06,79.042,0.54524572]
[1771971814860,0.2,79.06,79.041,12.65164105]
[1771971814861,0.2,79.07,79.043,0.50099394]
[1771971815061,0.2,79.07,79.051,0.50099394]
[1771971818789,0.4,79.07,79.051,0.50099394]
[1771971819478,0.2,79.06,79.051,0.50099394]
[1771971820283,0.4,79.07,79.054,0.50099394]
[1771971820463,0.4,79.07,79.06,4.92058367]
[1771971820662,0.52011908,79.084,79.06,4.92058367]
[1771971821473,12.64526132,79.082,79.06,4.92058367]
[1771971822380,12.64526132,79.082,79.061,0.50099394]
[1771971824971,12.64451659,79.086,79.062,0.50099394]
[1771971825586,0.2,79.082,79.062,0.50099394]
[1771971825788,0.2,79.082,79.071,0.50099394]
[1771971826691,0.2,79.082,79.072,0.50099394]